fUSD/lending_fUSD_20240116
["ID","MTS","AMOUNT","RATE_DAILY","PERIOD"]
[311807162,1705420280099,-500.0,0.00033672,10]
[311807163,1705420280109,-500.0,0.00033672,2]
[311807164,1705420280120,-1000.0,0.000337,2]
[311807165,1705420280130,-151.0,0.000337,2]
[311807166,1705420280140,-394.0,0.000337,2]
[311807167,1705420280150,-150.0,0.00033742,2]
[311807168,1705420280160,-152.0,0.00033759,18]
[311807169,1705420280170,-151.0,0.00033774,4]
[311807170,1705420280180,-300.18,0.0003378,2]
[311807171,1705420280190,-153.84,0.0003379,2]
[311807172,1705420280200,-234.9737633,0.00033797,7]
[311807173,1705420280213,-1605.93138325,0.00033797,7]
[311807174,1705420280227,-645.17661714,0.00033797,7]
[311807175,1705420280238,-2210.43834707,0.00033797,7]
[311807176,1705420280249,-220.0,0.0003384,2]
[311807177,1705420280260,-219.0,0.0003384,2]
[311807178,1705420280270,-314.46,0.0003386,2]
[311807179,1705420280281,-314.46,0.0003386,2]
[311807180,1705420280291,-314.46,0.0003386,2]
[311807181,1705420280302,-314.46,0.0003386,2]
[311807182,1705420280312,-314.46,0.0003386,2]
[311807183,1705420280322,-314.46,0.0003386,2]
[311807184,1705420280334,-131.06552027,0.0003386,2]
[311807185,1705420280348,-183.39447973,0.0003386,2]
[311807186,1705420280358,-314.46,0.0003386,2]
[311807187,1705420280370,-226.25,0.0003386,2]
[311807188,1705420280380,-150.0,0.00033874,2]
[311807189,1705420280391,-1000.0,0.0003389,2]
[311807190,1705420280402,-1000.0,0.0003389,2]
[311807191,1705420280734,-1000.0,0.0003389,2]
[311807192,1705420280743,-1000.0,0.0003389,2]
[311807193,1705420280753,-1000.0,0.0003389,2]
[311807194,1705420280763,-1000.0,0.0003389,2]
[311807195,1705420280773,-1000.0,0.0003389,2]
[311807196,1705420280783,-142.31140743,0.0003389,2]
[311807197,1705420280803,-365.29236329,0.00028,2]
[311807198,1705420280835,-264.43389281,0.00028,2]
[311807199,1705420280844,-266.36100345,0.0003389,2]
[311807200,1705420280862,-370.897592,0.00027454,7]
[311807201,1705420280872,-591.32758912,0.0003389,2]
[311807202,1705420280881,-1000.0,0.0003389,2]
[311807203,1705420280891,-1000.0,0.0003389,2]
[311807204,1705420280901,-1000.0,0.0003389,2]
[311807205,1705420280911,-1000.0,0.0003389,2]
[311807206,1705420280921,-1000.0,0.0003389,2]
[311807207,1705420280931,-836.12611158,0.0003389,2]
[311807208,1705420281922,-1195.69456881,0.00022409,2]
[311807209,1705420281933,-1335.26887752,0.00022409,2]
[311807210,1705420281943,-254.76383533,0.00022409,2]
[311807211,1705420281953,-1590.59326109,0.00022409,2]
[311807212,1705420281986,-1100.55,0.00022409,2]
[311807213,1705420281998,-500.0,0.00022409,2]
[311807214,1705420282010,-429.34971866,0.00022409,2]
[311807215,1705420282022,-20716.23535478,0.00022409,2]
[311807216,1705420282033,-370.897592,0.00023,7]
[311807217,1705420282045,-370.897592,0.00023,7]
[311807218,1705420282057,-294.22,0.00023216,2]
[311807219,1705420282067,-370.897592,0.000239,7]
[311807220,1705420282077,-629.7262561,0.00028,2]
[311807221,1705420282090,-629.7262561,0.00028,2]
[311807222,1705420282100,-629.7262561,0.00028,2]
[311807223,1705420282110,-629.7262561,0.00028,2]
[311807224,1705420282120,-629.7262561,0.00028,2]
[311807225,1705420282130,-629.7262561,0.00028,2]
[311807226,1705420282141,-629.7262561,0.00028,2]
[311807227,1705420282151,-629.7262561,0.00028,2]
[311807228,1705420282161,-629.7262561,0.00028,2]
[311807229,1705420282171,-629.7262561,0.00028,2]
[311807230,1705420282181,-629.7262561,0.00028,2]
[311807231,1705420282191,-370.897592,0.0002879,7]
[311807232,1705420282201,-370.897592,0.00029899,7]
[311807233,1705420282212,-370.897592,0.0002998,7]
[311807234,1705420282221,-163.87388842,0.0003389,2]
[311807235,1705420282231,-1000.0,0.0003389,2]
[311807236,1705420282241,-1000.0,0.0003389,2]
[311807237,1705420282251,-1000.0,0.0003389,2]
[311807238,1705420282260,-1000.0,0.0003389,2]
[311807239,1705420282270,-1000.0,0.0003389,2]
[311807240,1705420282280,-1000.0,0.0003389,2]
[311807241,1705420282289,-1000.0,0.0003389,2]
[311807242,1705420282299,-1000.0,0.0003389,2]
[311807243,1705420282308,-1000.0,0.0003389,2]
[311807244,1705420282318,-1000.0,0.0003389,2]
[311807245,1705420282328,-1000.0,0.0003389,2]
[311807246,1705420282339,-1000.0,0.0003389,2]
[311807247,1705420282349,-1000.0,0.0003389,2]
[311807248,1705420282358,-1000.0,0.0003389,2]
[311807249,1705420282369,-1000.0,0.0003389,2]
[311807250,1705420282383,-1000.0,0.0003389,2]
[311807251,1705420282393,-1000.0,0.0003389,2]
[311807252,1705420282402,-1000.0,0.0003389,2]
[311807253,1705420282413,-1000.0,0.0003389,2]
[311807254,1705420282423,-1000.0,0.0003389,2]
[311807255,1705420282432,-1000.0,0.0003389,2]
[311807256,1705420282442,-1000.0,0.0003389,2]
[311807257,1705420282451,-1000.0,0.0003389,2]
[311807258,1705420282461,-1000.0,0.0003389,2]
[311807259,1705420282471,-1000.0,0.0003389,2]
[311807260,1705420282480,-1000.0,0.0003389,2]
[311807261,1705420282489,-1000.0,0.0003389,2]
[311807262,1705420282499,-1000.0,0.0003389,2]
[311807263,1705420282509,-1000.0,0.0003389,2]
[311807264,1705420282518,-1000.0,0.0003389,2]
[311807265,1705420282528,-1000.0,0.0003389,2]
[311807266,1705420282538,-1000.0,0.0003389,2]
[311807267,1705420282549,-1000.0,0.0003389,2]
[311807268,1705420282559,-1000.0,0.0003389,2]
[311807269,1705420282570,-1000.0,0.0003389,2]
[311807270,1705420282580,-1000.0,0.0003389,2]
[311807271,1705420282591,-1000.0,0.0003389,2]
[311807272,1705420282600,-1000.0,0.0003389,2]
[311807273,1705420282609,-1000.0,0.0003389,2]
[311807274,1705420282620,-1000.0,0.0003389,2]
[311807275,1705420282630,-1000.0,0.0003389,2]
[311807276,1705420282640,-1000.0,0.0003389,2]
[311807277,1705420282649,-1000.0,0.0003389,2]
[311807278,1705420282659,-1000.0,0.0003389,2]
[311807279,1705420282669,-1000.0,0.0003389,2]
[311807280,1705420282678,-1000.0,0.0003389,2]
[311807281,1705420282687,-1000.0,0.0003389,2]
[311807282,1705420282696,-1000.0,0.0003389,2]
[311807283,1705420282706,-1000.0,0.0003389,2]
[311807284,1705420282716,-1000.0,0.0003389,2]
[311807285,1705420282725,-1000.0,0.0003389,2]
[311807286,1705420282735,-1000.0,0.0003389,2]
[311807287,1705420282744,-1000.0,0.0003389,2]
[311807288,1705420282753,-292.880046,0.00033891,2]
[311807289,1705420282763,-296.835907,0.00033891,2]
[311807290,1705420282773,-171.789284,0.00033891,2]
[311807291,1705420282783,-191.970715,0.00033891,2]
[311807292,1705420282793,-181.001925,0.00033891,2]
[311807293,1705420282802,-23079.513768,0.00033891,2]
[311807294,1705420282811,-8573.217216,0.00033891,2]
[311807295,1705420282821,-172.287322,0.00033891,2]
[311807296,1705420282830,-165.480453,0.00033891,2]
[311807297,1705420282841,-7998.047118,0.00033891,2]
[311807298,1705420282850,-407.095142,0.00033891,2]
[311807299,1705420282859,-1227.094884,0.00033891,2]
[311807300,1705420282869,-177.839839,0.00033891,2]
[311807301,1705420282879,-2389.825602,0.00033891,2]
[311807302,1705420282889,-225.762403,0.00033891,2]
[311807303,1705420282898,-639.410468,0.00033891,2]
[311807304,1705420282908,-185.639419,0.00033891,2]
[311807305,1705420282917,-605.76362,0.00033891,2]
[311807306,1705420282927,-2014.18,0.000339,2]
[311807307,1705420282936,-159.32,0.00033912,2]
[311807308,1705420282946,-150.0,0.00033912,2]
[311807309,1705420282955,-150.0,0.00033912,2]
[311807310,1705420282966,-418.24,0.00033912,2]
[311807311,1705420283069,-150.0,0.00033912,2]
[311807312,1705420283078,-150.0,0.00033912,2]
[311807313,1705420283089,-418.24,0.00033912,2]
[311807314,1705420283098,-150.0,0.00033912,2]
[311807315,1705420283107,-301.89,0.00033912,2]
[311807316,1705420283117,-418.24,0.00033912,2]
[311807317,1705420283127,-150.0,0.00033912,2]
[311807318,1705420283137,-418.24,0.00033912,2]
[311807319,1705420283147,-418.24,0.00033912,2]
[311807320,1705420283156,-150.0,0.00033912,2]
[311807321,1705420283165,-418.24,0.00033912,2]
[311807322,1705420283174,-408.4,0.00033912,2]
[311807323,1705420283184,-835.64,0.00033912,2]
[311807324,1705420283194,-408.4,0.00033912,2]
[311807325,1705420283204,-150.0,0.00033912,2]
[311807326,1705420283214,-408.4,0.00033912,2]
[311807327,1705420283224,-408.4,0.00033912,2]
[311807328,1705420283233,-150.0,0.00033912,2]
[311807329,1705420283243,-408.4,0.00033912,2]
[311807330,1705420283254,-408.4,0.00033912,2]
[311807331,1705420283263,-2063.38128549,0.00033919,7]
[311807332,1705420283273,-733.74547826,0.00033919,7]
[311807333,1705420283283,-1590.63795195,0.00033919,7]
[311807334,1705420283292,-300.18,0.0003392,2]
[311807335,1705420283302,-7121.76278505,0.0003397,7]
[311807336,1705420286213,-22477.99101998,0.0003397,7]
[311807337,1705420286224,-10437.72259497,0.0003397,7]
[311807338,1705420286234,-749.69,0.00033978,2]
[311807339,1705420286243,-500.0,0.00033987,3]
[311807340,1705420286251,-200.0,0.00033987,2]
[311807341,1705420286261,-500.0,0.00033987,4]
[311807342,1705420286270,-500.0,0.00033987,5]
[311807343,1705420286279,-6501.99791656,0.00034,4]
[311807344,1705420286290,-1286.03843706,0.00034,4]
[311807345,1705420286778,-1795.26069847,0.00034,4]
[311807346,1705420286837,-45849.09050388,0.00034,4]
[311807347,1705420286851,-2356.43045917,0.00034,4]
[311807348,1705420286863,-547.29616453,0.00034,4]
[311807349,1705420286885,-174.56544921,0.00022409,2]
[311807350,1705420286895,-12720.15156231,0.00034,4]
[311807351,1705420286907,-411.52,0.00034,4]
[311807352,1705420286920,-2874.11394378,0.00034,4]
[311807353,1705420286933,-890.2,0.00034,4]
[311807354,1705420286945,-8821.54792656,0.00034,4]
[311807355,1705420286958,-1143.161122,0.00034,4]
[311807356,1705420286971,-828.58769016,0.00034,4]
[311807357,1705420286984,-1348.82775721,0.00034,4]
[311807358,1705420286996,-431.0,0.00034,4]
[311807359,1705420287007,-980.0,0.00034,4]
[311807360,1705420287019,-352.5,0.00034,4]
[311807361,1705420287031,-7309.79065778,0.00034,4]
[311807362,1705420287044,-1403.99118836,0.00034,4]
[311807363,1705420287055,-761.08318395,0.00034,4]
[311807364,1705420287068,-1387.41078822,0.00034,4]
[311807365,1705420287078,-99005.6994412,0.00034,4]
[311807366,1705420287089,-734.02466279,0.00034,4]
[311807367,1705420287101,-260.27589601,0.00034,4]
[311807368,1705420287110,-155.0,0.00034,4]
[311807369,1705420287120,-803.0149723,0.00034,4]
[311807370,1705420287130,-1000.0,0.00034,4]
[311807371,1705420287140,-1000.0,0.00034,4]
[311807372,1705420287150,-1056.0,0.00034,4]
[311807373,1705420287160,-150.0,0.00034,7]
[311807374,1705420287170,-4552.56836821,0.00034,2]
[311807375,1705420287183,-13770.0000017,0.00034,2]
[311807376,1705420289252,886.58022676,0.00021915,2]
[311807377,1705420293247,675.1928,0.00021916,2]
[311807378,1705420294551,284.73114923,0.00021915,2]
[311807379,1705420295986,1096.02714429,0.00021915,2]
[311807380,1705420296153,156.53151362,0.00021915,2]
[311807381,1705420300891,2114.8852,0.00021914,2]
[311807382,1705420301106,2500.0,0.00021916,2]
[311807383,1705420302492,1961.1644,0.00021914,2]
[311807384,1705420303584,107995.3752,0.00021916,2]
[311807385,1705420304268,500.0,0.00021916,2]
[311807386,1705420306186,500.0,0.00021932,2]
[311807387,1705420307326,381.8477,0.00021916,2]
[311807388,1705420308394,200.0,0.00021825,2]
[311807389,1705420308639,3655.4677,0.00021915,2]
[311807390,1705420309741,1000.0,0.00021817,2]
[311807391,1705420312335,231.93292492,0.00021914,2]
[311807392,1705420316722,202.2,0.00019927,2]
[311807393,1705420328824,9584.01,0.00021809,2]
[311807394,1705420332478,167.7325939,0.00021916,5]
[311807395,1705420344890,245000.0,0.00021916,2]
[311807396,1705420355856,19324.1135,0.00021914,2]
[311807397,1705420371740,150.0,0.00021779,2]
[311807398,1705420376158,250.0,0.00021918,2]
[311807399,1705420400199,178.66,0.00021957,2]
[311807400,1705420446842,2000.0,0.00021507,2]
[311807401,1705420475987,1228.73,0.0002168,2]
[311807402,1705420502710,152.91,0.00021507,2]
[311807403,1705420518452,3631.61,0.00021478,2]
[311807404,1705420549040,155.0,0.00020165,2]
[311807405,1705420567000,500.0,0.000288,120]
[311807406,1705420576270,609.73073587,0.00021478,2]
[311807407,1705420596309,401.52181148,0.00021478,2]
[311807408,1705420635984,151.15,0.00021443,2]
[311807409,1705420664004,159.19,0.00021624,2]
[311807410,1705420696215,156.69,0.0002141,2]
[311807411,1705420696513,500.0,0.0002141,2]
[311807412,1705420709891,-1000.0,0.00036071,60]
[311807413,1705420709915,-752.0,0.00036071,120]
[311807414,1705420709939,-500.0,0.00036071,120]
[311807415,1705420709961,-912.26674943,0.00036071,120]
[311807416,1705420709983,-4035.52699876,0.00036071,30]
[311807417,1705420710004,-569.05023525,0.00036071,90]
[311807418,1705420710026,-2534.70033474,0.00036071,120]
[311807419,1705420710048,-299.68309344,0.00036071,30]
[311807420,1705420710071,-674.40485161,0.00036071,30]
[311807421,1705420710093,-151.68222645,0.00036071,120]
[311807422,1705420710116,-167.06046796,0.00036071,120]
[311807423,1705420710139,-1334.97594354,0.00036071,120]
[311807424,1705420710163,-303.44957867,0.00036071,120]
[311807425,1705420710185,-377.40084509,0.00036071,30]
[311807426,1705420710209,-160.35232772,0.00036071,120]
[311807427,1705420710232,-2069.66973049,0.00036071,62]
[311807428,1705420710254,-519.1237228,0.00036071,30]
[311807429,1705420710275,-333.59803639,0.00036071,120]
[311807430,1705420710297,-174.40766712,0.00036071,120]
[311807431,1705420710320,-425.06853108,0.00036071,30]
[311807432,1705420710342,-565.06497342,0.00036071,120]
[311807433,1705420710364,-374.64532909,0.00036071,120]
[311807434,1705420710386,-1638.53230381,0.00036071,30]
[311807435,1705420710408,-504.21313907,0.00036071,120]
[311807436,1705420710429,-1309.70004891,0.00036071,30]
[311807437,1705420710451,-162.97719743,0.00036071,120]
[311807438,1705420710473,-549.80927983,0.00036071,120]
[311807439,1705420710495,-840.09049291,0.00036071,30]
[311807440,1705420710518,-183.78918102,0.00036071,120]
[311807441,1705420710541,-1604.6469316,0.00036071,120]
[311807442,1705420710824,-353.45057716,0.00036071,120]
[311807443,1705420710847,-212.35475517,0.00036071,30]
[311807444,1705420710870,-5000.0,0.00036071,120]
[311807445,1705420710892,-61067.2005924,0.00036071,60]
[311807446,1705420710918,-176.5801106,0.00036071,30]
[311807447,1705420710940,-500.0,0.00036071,120]
[311807448,1705420710962,-172.95382008,0.00036071,30]
[311807449,1705420710983,-346.771538,0.00036071,30]
[311807450,1705420711005,-305.480553,0.00036071,30]
[311807451,1705420711027,-247.17065883,0.00036071,30]
[311807452,1705420711049,-1969.462205,0.00036071,30]
[311807453,1705420714300,-1000.0,0.0003,30]
[311807454,1705420714332,-600.0,0.00034,35]
[311807455,1705420714360,-371.61622736,0.000345,120]
[311807456,1705420714384,-17500.0,0.000347,31]
[311807457,1705420714410,-174.61910141,0.0003493,30]
[311807458,1705420714437,-873.82205036,0.00035,30]
[311807459,1705420714462,-600.0,0.00035,36]
[311807460,1705420714484,-1800.0,0.00035,30]
[311807461,1705420714780,-2991.83487349,0.00035,30]
[311807462,1705420714803,-1171.55762355,0.00035,30]
[311807463,1705420714824,-519.0,0.00035,30]
[311807464,1705420714853,-227.89977343,0.00035135,30]
[311807465,1705420714885,-155.62980233,0.000355,30]
[311807466,1705420714912,-1050.0,0.00035616,32]
[311807467,1705420714936,-1223.36364108,0.00035616,37]
[311807468,1705420714960,-156.23199124,0.00035616,120]
[311807469,1705420714983,-4000.0,0.00035616,30]
[311807470,1705420715006,-150.0,0.00035769,120]
[311807471,1705420715031,-174.61910141,0.0003593,30]
[311807472,1705420715054,-3342.54497039,0.00035952,30]
[311807473,1705420715079,-2000.0,0.00036,120]
[311807474,1705420715104,-600.0,0.00036,37]
[311807475,1705420715128,-2051.0,0.00036001,30]
[311807476,1705420715169,-150.0,0.00036438,31]
[311807477,1705420715194,-150.0,0.00036438,41]
[311807478,1705420715216,-150.0,0.00036438,50]
[311807479,1705420715238,-150.0,0.00036438,60]
[311807480,1705420715262,-150.0,0.00036438,70]
[311807481,1705420715285,-150.0,0.00036438,80]
[311807482,1705420715309,-150.0,0.00036438,90]
[311807483,1705420715335,-150.0,0.0003693,120]
[311807484,1705420715361,-150.0,0.00037,30]
[311807485,1705420715386,-600.0,0.00037,38]
[311807486,1705420715409,-1736.82417459,0.00037,120]
[311807487,1705420715433,-150.0,0.000372,30]
[311807488,1705420715460,-150.0,0.000374,30]
[311807489,1705420715484,-195.1542248,0.000376,30]
[311807490,1705420715508,-150.0,0.00037767,120]
[311807491,1705420715531,-162.06719808,0.000378,30]
[311807492,1705420715556,-2051.0,0.00037896,30]
[311807493,1705420715580,-179.47,0.0003797,120]
[311807494,1705420715603,-246.0,0.0003797,120]
[311807495,1705420715627,-241.0,0.0003797,120]
[311807496,1705420715651,-246.0,0.0003797,120]
[311807497,1705420715677,-241.0,0.0003797,120]
[311807498,1705420715704,-150.5,0.0003797,120]
[311807499,1705420715728,-1549.0,0.0003797,120]
[311807500,1705420715750,-150.5,0.0003797,120]
[311807501,1705420715773,-1549.0,0.0003797,120]
[311807502,1705420715798,-150.5,0.0003797,120]
[311807503,1705420715821,-150.5,0.0003797,120]
[311807504,1705420715844,-150.5,0.0003797,120]
[311807505,1705420715867,-153.0,0.0003797,120]
[311807506,1705420715894,-150.5,0.0003797,120]
[311807507,1705420715918,-150.5,0.0003797,120]
[311807508,1705420715947,-153.0,0.0003797,120]
[311807509,1705420715971,-281.39,0.0003797,120]
[311807510,1705420715995,-150.5,0.0003797,120]
[311807511,1705420716018,-150.5,0.0003797,120]
[311807512,1705420716041,-150.5,0.0003797,120]
[311807513,1705420716070,-391.0,0.0003797,120]
[311807514,1705420716093,-240.0,0.0003797,30]
[311807515,1705420716115,-406.0,0.0003797,120]
[311807516,1705420716137,-194.92,0.0003797,120]
[311807517,1705420716161,-150.5,0.0003797,120]
[311807518,1705420716184,-391.0,0.0003797,120]
[311807519,1705420716208,-240.0,0.0003797,30]
[311807520,1705420716231,-406.0,0.0003797,120]
[311807521,1705420716252,-278.0,0.0003797,120]
[311807522,1705420716274,-278.0,0.0003797,120]
[311807523,1705420716297,-150.5,0.0003798,120]
[311807524,1705420716319,-246.0,0.0003798,120]
[311807525,1705420716342,-241.0,0.0003798,120]
[311807526,1705420716365,-246.0,0.0003798,120]
[311807527,1705420716388,-241.0,0.0003798,120]
[311807528,1705420716411,-246.0,0.0003798,120]
[311807529,1705420716434,-241.0,0.0003798,120]
[311807530,1705420716456,-249.12,0.0003798,120]
[311807531,1705420716479,-241.84,0.0003798,120]
[311807532,1705420716501,-150.5,0.0003798,120]
[311807533,1705420716526,-235.6,0.0003798,120]
[311807534,1705420716548,-1549.0,0.0003798,120]
[311807535,1705420716572,-150.5,0.0003798,120]
[311807536,1705420716595,-1549.0,0.0003798,120]
[311807537,1705420716619,-1549.0,0.0003798,120]
[311807538,1705420716644,-1554.97,0.0003798,120]
[311807539,1705420716668,-150.5,0.0003798,120]
[311807540,1705420716694,-150.5,0.0003798,120]
[311807541,1705420716717,-150.5,0.0003798,120]
[311807542,1705420716739,-153.0,0.0003798,120]
[311807543,1705420716760,-150.5,0.0003798,120]
[311807544,1705420716782,-150.5,0.0003798,120]
[311807545,1705420716804,-153.0,0.0003798,120]
[311807546,1705420716826,-150.5,0.0003798,120]
[311807547,1705420716848,-153.0,0.0003798,120]
[311807548,1705420716869,-154.64,0.0003798,120]
[311807549,1705420716892,-150.5,0.0003798,120]
[311807550,1705420716914,-150.5,0.0003798,120]
[311807551,1705420716936,-150.5,0.0003798,120]
[311807552,1705420716960,-391.0,0.0003798,120]
[311807553,1705420716983,-240.0,0.0003798,30]
[311807554,1705420717005,-406.0,0.0003798,120]
[311807555,1705420717028,-190.21,0.0003798,120]
[311807556,1705420717051,-150.5,0.0003798,120]
[311807557,1705420717073,-150.5,0.0003798,120]
[311807558,1705420717095,-391.0,0.0003798,120]
[311807559,1705420717117,-240.0,0.0003798,30]
[311807560,1705420717140,-406.0,0.0003798,120]
[311807561,1705420717161,-391.0,0.0003798,120]
[311807562,1705420717183,-240.0,0.0003798,30]
[311807563,1705420717407,-406.0,0.0003798,120]
[311807564,1705420717430,-393.73,0.0003798,120]
[311807565,1705420717454,-411.55,0.0003798,120]
[311807566,1705420717476,-245.65,0.0003798,30]
[311807567,1705420717498,-278.0,0.0003798,120]
[311807568,1705420717524,-278.0,0.0003798,120]
[311807569,1705420717545,-278.0,0.0003798,120]
[311807570,1705420717567,-278.79,0.0003798,120]
[311807571,1705420717590,-300.77,0.0003799,120]
[311807572,1705420717614,-150.5,0.0003799,120]
[311807573,1705420717636,-246.0,0.0003799,120]
[311807574,1705420717658,-241.0,0.0003799,120]
[311807575,1705420717680,-246.0,0.0003799,120]
[311807576,1705420717706,-241.0,0.0003799,120]
[311807577,1705420717729,-246.0,0.0003799,120]
[311807578,1705420717752,-241.0,0.0003799,120]
[311807579,1705420717774,-246.0,0.0003799,120]
[311807580,1705420717797,-241.0,0.0003799,120]
[311807581,1705420717820,-150.5,0.0003799,120]
[311807582,1705420717842,-150.5,0.0003799,120]
[311807583,1705420717868,-1549.0,0.0003799,120]
[311807584,1705420717891,-150.5,0.0003799,120]
[311807585,1705420717913,-1549.0,0.0003799,120]
[311807586,1705420717935,-201.77,0.0003799,120]
[311807587,1705420717959,-1549.0,0.0003799,120]
[311807588,1705420717981,-1549.0,0.0003799,120]
[311807589,1705420718003,-150.5,0.0003799,120]
[311807590,1705420718026,-224.05,0.0003799,120]
[311807591,1705420718049,-150.5,0.0003799,120]
[311807592,1705420718071,-150.5,0.0003799,120]
[311807593,1705420718120,-166.49,0.0003799,120]
[311807594,1705420718143,-153.0,0.0003799,120]
[311807595,1705420718165,-150.5,0.0003799,120]
[311807596,1705420718190,-150.5,0.0003799,120]
[311807597,1705420718217,-204.83,0.0003799,120]
[311807598,1705420718242,-153.0,0.0003799,120]
[311807599,1705420718265,-212.45,0.0003799,120]
[311807600,1705420718288,-150.5,0.0003799,120]
[311807601,1705420718312,-153.0,0.0003799,120]
[311807602,1705420718336,-153.0,0.0003799,120]
[311807603,1705420718359,-227.01,0.0003799,120]
[311807604,1705420718382,-150.5,0.0003799,120]
[311807605,1705420718407,-150.5,0.0003799,120]
[311807606,1705420718431,-150.5,0.0003799,120]
[311807607,1705420718458,-391.0,0.0003799,120]
[311807608,1705420718482,-240.0,0.0003799,30]
[311807609,1705420718506,-406.0,0.0003799,120]
[311807610,1705420718531,-150.5,0.0003799,120]
[311807611,1705420718556,-150.5,0.0003799,120]
[311807612,1705420718580,-150.5,0.0003799,120]
[311807613,1705420718604,-391.0,0.0003799,120]
[311807614,1705420718627,-240.0,0.0003799,30]
[311807615,1705420718649,-406.0,0.0003799,120]
[311807616,1705420718673,-289.7,0.0003799,120]
[311807617,1705420718697,-391.0,0.0003799,120]
[311807618,1705420718719,-240.0,0.0003799,30]
[311807619,1705420718743,-406.0,0.0003799,120]
[311807620,1705420718767,-391.0,0.0003799,120]
[311807621,1705420718790,-240.0,0.0003799,30]
[311807622,1705420718813,-406.0,0.0003799,120]
[311807623,1705420718836,-278.0,0.0003799,120]
[311807624,1705420718859,-278.0,0.0003799,120]
[311807625,1705420718881,-278.0,0.0003799,120]
[311807626,1705420718902,-278.0,0.0003799,120]
[311807627,1705420718926,-600.0,0.00038,39]
[311807628,1705420718947,-612.02093934,0.00038,30]
[311807629,1705420718969,-312.255466,0.00038,30]
[311807630,1705420718991,-1753.30523125,0.00038356,30]
[311807631,1705420719017,-14993.65497305,0.000388,30]
[311807632,1705420719042,-161.04431928,0.00039,40]
[311807633,1705420719064,-600.0,0.00039,40]
[311807634,1705420719086,-3229.77821898,0.00039,120]
[311807635,1705420719109,-150.0,0.00039157,120]
[311807636,1705420719130,-282.1109604,0.0003922,30]
[311807637,1705420719153,-5000.0,0.000395,30]
[311807638,1705420719175,-150.0,0.00039609,120]
[311807639,1705420719199,-2658.13099594,0.0003988,39]
[311807640,1705420719222,-2051.0,0.00039891,30]
[311807641,1705420719244,-2056.03323844,0.00039894,31]
[311807642,1705420719269,-449.91929778,0.00039999,30]
[311807643,1705420719296,-391.23029086,0.0004,30]
[311807644,1705420719318,-158.53930518,0.0004,30]
[311807645,1705420719342,-584.75175802,0.0004,30]
[311807646,1705420719364,-868.82156004,0.0004,30]
[311807647,1705420719386,-1222.82370173,0.0004,30]
[311807648,1705420719415,-3229.04260055,0.0004,30]
[311807649,1705420719439,-766.8680499,0.0004,120]
[311807650,1705420719470,-1916.17764564,0.0004,120]
[311807651,1705420719495,-600.0,0.0004,41]
[311807652,1705420719520,-1750.0,0.0004,30]
[311807653,1705420719545,-1168.36693971,0.0004,120]
[311807654,1705420719568,-163.59841905,0.0004,30]
[311807655,1705420719590,-244.55707431,0.0004,30]
[311807656,1705420719612,-280.96394003,0.0004,30]
[311807657,1705420719634,-1413.70343762,0.0004,30]
[311807658,1705420719656,-1098.27957906,0.0004,120]
[311807659,1705420719678,-1015.83400661,0.0004,30]
[311807660,1705420719703,-1817.34273775,0.0004,120]
[311807661,1705420719725,-1774.0,0.0004,30]